[Event "*** Titled Tuesday Blitz"]
[Site "Chess.com"]
[Date "2020.01.07"]
[Round "8"]
[White "ExploringChess"]
[Black "Genghis_K"]
[Result "1/2-1/2"]
[WhiteElo "2630"]
[BlackElo "2915"]
[TimeControl "180+2"]
[EndTime "14:56:11 PST"]
[Termination "Game drawn - insufficient material"]

1. e4 {[%clk 0:02:35.7]} 1... c5 {[%clk 0:02:54.7]} 2. Nf3 {[%clk 0:02:36.6]}
2... d6 {[%clk 0:02:56.1]} 3. d4 {[%clk 0:02:37.2]} 3... cxd4 {[%clk 0:02:58]}
4. Nxd4 {[%clk 0:02:39.1]} 4... Nf6 {[%clk 0:02:59.5]} 5. Nc3 {[%clk 0:02:40.4]}
5... a6 {[%clk 0:03:01.2]} 6. Bg5 {[%clk 0:02:41.4]} 6... e6 {[%clk 0:03:02.5]}
7. f4 {[%clk 0:02:40.9]} 7... h6 {[%clk 0:03:04.1]} 8. Bh4 {[%clk 0:02:39.7]}
8... Qb6 {[%clk 0:03:05.7]} 9. a3 {[%clk 0:02:39.4]} 9... Nbd7 {[%clk
0:03:06.4]} 10. Bf2 {[%clk 0:02:40.2]} 10... Qc7 {[%clk 0:03:07.8]} 11. Qf3
{[%clk 0:02:40.8]} 11... b5 {[%clk 0:03:09.2]} 12. Bd3 {[%clk 0:02:40.8]} 12...
Bb7 {[%clk 0:03:10.1]} 13. g4 {[%clk 0:02:40.5]} 13... Nc5 {[%clk 0:03:10.1]}
14. h4 {[%clk 0:02:37.5]} 14... h5 {[%clk 0:03:04.9]} 15. gxh5 {[%clk
0:02:22.9]} 15... Rxh5 {[%clk 0:03:02.6]} 16. O-O-O {[%clk 0:01:39.7]} 16... Rc8
{[%clk 0:02:45.9]} 17. Kb1 {[%clk 0:01:36.3]} 17... g6 {[%clk 0:02:37.3]} 18.
Rhg1 {[%clk 0:01:32.5]} 18... Qa5 {[%clk 0:02:24]} 19. Be1 {[%clk 0:01:20.9]}
19... Qb6 {[%clk 0:02:19.5]} 20. Bf2 {[%clk 0:01:15.2]} 20... b4 {[%clk
0:02:20.3]} 21. axb4 {[%clk 0:01:10.7]} 21... Qxb4 {[%clk 0:02:22.2]} 22. Be1
{[%clk 0:01:11.6]} 22... Qb6 {[%clk 0:02:15.6]} 23. Qe3 {[%clk 0:01:11.3]} 23...
Ba8 {[%clk 0:02:06.6]} 24. Nb3 {[%clk 0:01:09.5]} 24... Nfd7 {[%clk 0:01:51.4]}
25. Rg5 {[%clk 0:01:09.1]} 25... Rxg5 {[%clk 0:01:50.9]} 26. hxg5 {[%clk
0:01:06.7]} 26... Bg7 {[%clk 0:01:51.8]} 27. f5 {[%clk 0:01:04.7]} 27... Be5
{[%clk 0:01:34.6]} 28. fxg6 {[%clk 0:01:02.5]} 28... fxg6 {[%clk 0:01:35.2]} 29.
Qh3 {[%clk 0:01:02.8]} 29... Nf8 {[%clk 0:01:28.7]} 30. Bf2 {[%clk 0:01:03.7]}
30... Qb4 {[%clk 0:01:23.8]} 31. Bxc5 {[%clk 0:00:57]} 31... dxc5 {[%clk
0:01:24.4]} 32. Na2 {[%clk 0:00:54.6]} 32... Qa4 {[%clk 0:01:21]} 33. Nd2 {[%clk
0:00:55.1]} 33... c4 {[%clk 0:01:17.2]} 34. Be2 {[%clk 0:00:54.9]} 34... c3
{[%clk 0:01:15.8]} 35. Nxc3 {[%clk 0:00:53.4]} 35... Qb4 {[%clk 0:00:47.1]} 36.
Nb3 {[%clk 0:00:53.5]} 36... Bxc3 {[%clk 0:00:33.5]} 37. bxc3 {[%clk 0:00:48.8]}
37... Rxc3 {[%clk 0:00:34.8]} 38. Rd3 {[%clk 0:00:48.4]} 38... Rc8 {[%clk
0:00:29.5]} 39. Qh4 {[%clk 0:00:39.8]} 39... Bxe4 {[%clk 0:00:24.9]} 40. Bf3
{[%clk 0:00:35.6]} 40... Rc4 {[%clk 0:00:19.1]} 41. Bxe4 {[%clk 0:00:36.5]}
41... Rxe4 {[%clk 0:00:21]} 42. Qh2 {[%clk 0:00:37.4]} 42... a5 {[%clk
0:00:16.6]} 43. Qc7 {[%clk 0:00:32.2]} 43... Re1+ {[%clk 0:00:14.7]} 44. Ka2
{[%clk 0:00:30.8]} 44... Qa4+ {[%clk 0:00:10.8]} 45. Kb2 {[%clk 0:00:30.5]}
45... Nd7 {[%clk 0:00:12.5]} 46. Qb7 {[%clk 0:00:24.5]} 46... Re4 {[%clk
0:00:08.3]} 47. Rxd7 {[%clk 0:00:23.2]} 47... Qxd7 {[%clk 0:00:06.2]} 48. Qxd7+
{[%clk 0:00:25.1]} 48... Kxd7 {[%clk 0:00:06.5]} 49. Nc5+ {[%clk 0:00:27]} 49...
Kd6 {[%clk 0:00:08.4]} 50. Nxe4+ {[%clk 0:00:28.3]} 50... Ke5 {[%clk 0:00:10.3]}
51. Nf2 {[%clk 0:00:26.9]} 51... Kf4 {[%clk 0:00:11.3]} 52. c4 {[%clk
0:00:27.8]} 52... Kxg5 {[%clk 0:00:12.9]} 53. c5 {[%clk 0:00:28.7]} 53... Kf6
{[%clk 0:00:14]} 54. Ne4+ {[%clk 0:00:28.3]} 54... Ke7 {[%clk 0:00:14]} 55. Kc3
{[%clk 0:00:29.6]} 55... Kd7 {[%clk 0:00:15.3]} 56. Kc4 {[%clk 0:00:31.1]} 56...
Kc6 {[%clk 0:00:16.8]} 57. Ng5 {[%clk 0:00:31.7]} 57... e5 {[%clk 0:00:18]} 58.
Nf7 {[%clk 0:00:31.9]} 58... a4 {[%clk 0:00:15.4]} 59. Nxe5+ {[%clk 0:00:32.8]}
59... Kc7 {[%clk 0:00:17]} 60. Nxg6 {[%clk 0:00:32.3]} 60... a3 {[%clk
0:00:17.9]} 61. Kb3 {[%clk 0:00:12]} 61... a2 {[%clk 0:00:19.8]} 62. Kxa2 {[%clk
0:00:12.1]} 62... Kc6 {[%clk 0:00:21.5]} 63. Ne5+ {[%clk 0:00:12.7]} 63... Kxc5
{[%clk 0:00:23.4]} 1/2-1/2

[Event "*** Titled Tuesday Blitz"]
[Site "Chess.com"]
[Date "2020.01.07"]
[Round "8"]
[White "Supernotar"]
[Black "13MiRacLe"]
[Result "0-1"]
[WhiteElo "2551"]
[BlackElo "2710"]
[TimeControl "180+2"]
[EndTime "14:56:26 PST"]
[Termination "13MiRacLe won by checkmate"]

1. d4 {[%clk 0:03:01.9]} 1... Nf6 {[%clk 0:03:00.8]} 2. c4 {[%clk 0:03:00.8]}
2... g6 {[%clk 0:03:02.1]} 3. Nc3 {[%clk 0:03:01.1]} 3... d5 {[%clk 0:03:03.6]}
4. cxd5 {[%clk 0:03:01.6]} 4... Nxd5 {[%clk 0:03:05.5]} 5. e4 {[%clk 0:03:02.6]}
5... Nxc3 {[%clk 0:03:07]} 6. bxc3 {[%clk 0:03:03.7]} 6... Bg7 {[%clk
0:03:08.6]} 7. Nf3 {[%clk 0:03:04.9]} 7... c5 {[%clk 0:03:10.1]} 8. Be3 {[%clk
0:03:06.1]} 8... Qa5 {[%clk 0:03:08.8]} 9. Qd2 {[%clk 0:03:06.5]} 9... O-O
{[%clk 0:03:09.5]} 10. Rc1 {[%clk 0:03:06.9]} 10... Rd8 {[%clk 0:03:10]} 11. d5
{[%clk 0:03:04.4]} 11... e6 {[%clk 0:03:10.6]} 12. c4 {[%clk 0:03:01.6]} 12...
Qxd2+ {[%clk 0:03:11.1]} 13. Nxd2 {[%clk 0:03:01.7]} 13... Na6 {[%clk 0:03:12]}
14. f3 {[%clk 0:02:59]} 14... b6 {[%clk 0:03:06.1]} 15. Rb1 {[%clk 0:02:51.9]}
15... Nb4 {[%clk 0:03:05.5]} 16. Bg5 {[%clk 0:02:43.5]} 16... f6 {[%clk
0:02:59.1]} 17. Bf4 {[%clk 0:02:41.3]} 17... Nxa2 {[%clk 0:02:49]} 18. Rb3
{[%clk 0:02:22.2]} 18... Nb4 {[%clk 0:02:42.1]} 19. Be2 {[%clk 0:02:22.5]} 19...
a5 {[%clk 0:02:42.3]} 20. Bc7 {[%clk 0:02:20.5]} 20... Re8 {[%clk 0:02:26.2]}
21. Bxb6 {[%clk 0:02:20.6]} 21... Nc2+ {[%clk 0:02:08.9]} 22. Kf2 {[%clk
0:02:16.6]} 22... Nd4 {[%clk 0:02:10]} 23. Ra3 {[%clk 0:02:13]} 23... exd5
{[%clk 0:01:48.9]} 24. cxd5 {[%clk 0:02:10.7]} 24... Nxe2 {[%clk 0:01:50.1]} 25.
Kxe2 {[%clk 0:02:07]} 25... a4 {[%clk 0:01:43.5]} 26. Bxc5 {[%clk 0:02:04]}
26... f5 {[%clk 0:01:44.9]} 27. Kf2 {[%clk 0:01:44.2]} 27... fxe4 {[%clk
0:01:17.7]} 28. Nxe4 {[%clk 0:01:39.4]} 28... Re5 {[%clk 0:01:06.7]} 29. Rd1
{[%clk 0:01:27.6]} 29... Bb7 {[%clk 0:01:07.3]} 30. Rd4 {[%clk 0:01:14.8]} 30...
Bxd5 {[%clk 0:00:37.5]} 31. Rdxa4 {[%clk 0:00:24.5]} 31... Rxa4 {[%clk
0:00:35.6]} 32. Rxa4 {[%clk 0:00:25.7]} 32... Bxe4 {[%clk 0:00:34.5]} 33. Bd4
{[%clk 0:00:23.5]} 33... Bc6 {[%clk 0:00:22.5]} 34. Ra7 {[%clk 0:00:23.7]} 34...
Bf6 {[%clk 0:00:09.2]} 35. Bxe5 {[%clk 0:00:21.3]} 35... Bxe5 {[%clk 0:00:11.1]}
36. Kf1 {[%clk 0:00:19]} 36... Bb5+ {[%clk 0:00:10.6]} 37. Ke1 {[%clk
0:00:18.9]} 37... Bxh2 {[%clk 0:00:12.1]} 38. Rb7 {[%clk 0:00:18.5]} 38... Bc4
{[%clk 0:00:12.1]} 39. Rb4 {[%clk 0:00:18.4]} 39... Bf7 {[%clk 0:00:12.1]} 40.
f4 {[%clk 0:00:17.8]} 40... Bg3+ {[%clk 0:00:12.9]} 41. Ke2 {[%clk 0:00:18.1]}
41... Bh4 {[%clk 0:00:14.4]} 42. Rb8+ {[%clk 0:00:16.8]} 42... Kg7 {[%clk
0:00:15.5]} 43. Kf3 {[%clk 0:00:17.5]} 43... h5 {[%clk 0:00:15.7]} 44. g4 {[%clk
0:00:15.6]} 44... Bd5+ {[%clk 0:00:16.1]} 45. Ke3 {[%clk 0:00:14.3]} 45... hxg4
{[%clk 0:00:17.2]} 46. Kd4 {[%clk 0:00:15]} 46... Bf3 {[%clk 0:00:16.7]} 47. Rb3
{[%clk 0:00:10.3]} 47... g3 {[%clk 0:00:12.8]} 48. Ke3 {[%clk 0:00:08.6]} 48...
g2 {[%clk 0:00:13.8]} 49. Rb1 {[%clk 0:00:07.5]} 49... Bc6 {[%clk 0:00:13.7]}
50. Rc1 {[%clk 0:00:05.9]} 50... Bd8 {[%clk 0:00:12.1]} 51. Rb1 {[%clk
0:00:03.1]} 51... g1=Q+ {[%clk 0:00:10.5]} 52. Rxg1 {[%clk 0:00:03]} 52... Bb6+
{[%clk 0:00:11.3]} 53. Kd3 {[%clk 0:00:04.2]} 53... Bxg1 {[%clk 0:00:13.2]} 54.
f5 {[%clk 0:00:05.8]} 54... gxf5 {[%clk 0:00:13.8]} 55. Ke2 {[%clk 0:00:06]}
55... Kg6 {[%clk 0:00:14.9]} 56. Kf1 {[%clk 0:00:07.1]} 56... Bc5 {[%clk
0:00:16.8]} 57. Ke2 {[%clk 0:00:08.4]} 57... Be7 {[%clk 0:00:18.7]} 58. Ke3
{[%clk 0:00:09.3]} 58... Be8 {[%clk 0:00:20.6]} 59. Kf4 {[%clk 0:00:10.7]} 59...
Kf6 {[%clk 0:00:22.5]} 60. Kf3 {[%clk 0:00:12]} 60... Kg5 {[%clk 0:00:24.4]} 61.
Kg3 {[%clk 0:00:13.3]} 61... f4+ {[%clk 0:00:26.3]} 62. Kh3 {[%clk 0:00:15.1]}
62... Kf5 {[%clk 0:00:28.2]} 63. Kh2 {[%clk 0:00:17]} 63... Ke4 {[%clk
0:00:30.1]} 64. Kh3 {[%clk 0:00:18.9]} 64... Ke3 {[%clk 0:00:32]} 65. Kh2 {[%clk
0:00:20.8]} 65... f3 {[%clk 0:00:33.9]} 66. Kg1 {[%clk 0:00:22.7]} 66... Ke2
{[%clk 0:00:33.6]} 67. Kh2 {[%clk 0:00:23.8]} 67... f2 {[%clk 0:00:34.3]} 68.
Kg3 {[%clk 0:00:25.1]} 68... f1=Q {[%clk 0:00:33]} 69. Kh2 {[%clk 0:00:27]}
69... Bd6# {[%clk 0:00:33.5]} 0-1

[Event "*** Titled Tuesday Blitz"]
[Site "Chess.com"]
[Date "2020.01.07"]
[Round "8"]
[White "TwentyHoursADay"]
[Black "FredyMatsuura"]
[Result "1-0"]
[WhiteElo "2403"]
[BlackElo "2245"]
[TimeControl "180+2"]
[EndTime "14:56:30 PST"]
[Termination "TwentyHoursADay won by checkmate"]

1. c4 {[%clk 0:03:00.8]} 1... Nf6 {[%clk 0:02:59.8]} 2. Nc3 {[%clk 0:03:00.1]}
2... e6 {[%clk 0:02:59.2]} 3. e4 {[%clk 0:03:01.2]} 3... c5 {[%clk 0:02:59.5]}
4. Nf3 {[%clk 0:03:02]} 4... Nc6 {[%clk 0:02:59.4]} 5. d4 {[%clk 0:03:02]} 5...
cxd4 {[%clk 0:03:00.3]} 6. Nxd4 {[%clk 0:03:03.1]} 6... Bb4 {[%clk 0:03:01.7]}
7. Nxc6 {[%clk 0:03:04.6]} 7... bxc6 {[%clk 0:03:01.8]} 8. Bd3 {[%clk
0:03:02.2]} 8... d5 {[%clk 0:02:57.7]} 9. cxd5 {[%clk 0:03:02.4]} 9... exd5
{[%clk 0:02:56.3]} 10. exd5 {[%clk 0:03:01]} 10... O-O {[%clk 0:02:56.4]} 11.
O-O {[%clk 0:02:57.3]} 11... Nxd5 {[%clk 0:02:52.1]} 12. Nxd5 {[%clk 0:02:52.9]}
12... cxd5 {[%clk 0:02:49.9]} 13. Be3 {[%clk 0:02:52.4]} 13... Be6 {[%clk
0:02:41.6]} 14. Bd4 {[%clk 0:02:50]} 14... Be7 {[%clk 0:02:39.5]} 15. Qf3 {[%clk
0:02:39.2]} 15... a5 {[%clk 0:02:20.6]} 16. Rad1 {[%clk 0:02:33]} 16... Rc8
{[%clk 0:02:15.5]} 17. Rfe1 {[%clk 0:02:33.3]} 17... Bc5 {[%clk 0:02:15]} 18.
Qh5 {[%clk 0:02:23]} 18... g6 {[%clk 0:02:12.1]} 19. Qe5 {[%clk 0:02:23.9]}
19... Bxd4 {[%clk 0:02:11.3]} 20. Qxd4 {[%clk 0:02:25.8]} 20... Qc7 {[%clk
0:02:06.5]} 21. Rd2 {[%clk 0:02:16.9]} 21... Qc5 {[%clk 0:02:04.5]} 22. Qxc5
{[%clk 0:02:06.3]} 22... Rxc5 {[%clk 0:02:03.7]} 23. b3 {[%clk 0:01:57.7]} 23...
Ra8 {[%clk 0:01:57.7]} 24. f3 {[%clk 0:01:56.6]} 24... Rc3 {[%clk 0:01:53.9]}
25. Kf2 {[%clk 0:01:48.8]} 25... a4 {[%clk 0:01:54.5]} 26. b4 {[%clk 0:01:42.8]}
26... a3 {[%clk 0:01:55.1]} 27. Rb1 {[%clk 0:01:34]} 27... Kf8 {[%clk
0:01:52.8]} 28. Ke3 {[%clk 0:01:27.4]} 28... Ke7 {[%clk 0:01:49.6]} 29. Kd4
{[%clk 0:01:28.1]} 29... Rc7 {[%clk 0:01:47.7]} 30. Rc2 {[%clk 0:01:17.9]} 30...
Rxc2 {[%clk 0:01:42.5]} 31. Bxc2 {[%clk 0:01:19.8]} 31... Kd6 {[%clk 0:01:43]}
32. b5 {[%clk 0:01:15.2]} 32... Bd7 {[%clk 0:01:28.7]} 33. Rb4 {[%clk 0:00:58]}
33... Rb8 {[%clk 0:01:23.5]} 34. Bd3 {[%clk 0:00:53.8]} 34... Ra8 {[%clk
0:01:19]} 35. b6 {[%clk 0:00:49.7]} 35... Bc6 {[%clk 0:01:14]} 36. Bb5 {[%clk
0:00:38.8]} 36... Rb8 {[%clk 0:01:06]} 37. Bxc6 {[%clk 0:00:21.6]} 37... Kxc6
{[%clk 0:01:05.3]} 38. b7 {[%clk 0:00:23]} 38... f6 {[%clk 0:01:01.3]} 39. f4
{[%clk 0:00:21.8]} 39... f5 {[%clk 0:00:52.2]} 40. g3 {[%clk 0:00:21.8]} 40...
Kd6 {[%clk 0:00:46.6]} 41. Rb6+ {[%clk 0:00:22.6]} 41... Kc7 {[%clk 0:00:47.1]}
42. Rb3 {[%clk 0:00:18.7]} 42... Kd6 {[%clk 0:00:47.6]} 43. Rb6+ {[%clk
0:00:16.1]} 43... Kc7 {[%clk 0:00:48.4]} 44. Kc5 {[%clk 0:00:17.2]} 44... d4
{[%clk 0:00:43.5]} 45. Rb3 {[%clk 0:00:16.3]} 45... d3 {[%clk 0:00:40.6]} 46.
Rxd3 {[%clk 0:00:16.6]} 46... Rxb7 {[%clk 0:00:41.9]} 47. Rxa3 {[%clk
0:00:17.9]} 47... Rb2 {[%clk 0:00:38.8]} 48. Ra7+ {[%clk 0:00:14]} 48... Kb8
{[%clk 0:00:39.4]} 49. Rxh7 {[%clk 0:00:14.5]} 49... Rxa2 {[%clk 0:00:40.3]} 50.
Kd6 {[%clk 0:00:14.1]} 50... Ra6+ {[%clk 0:00:36.4]} 51. Ke5 {[%clk 0:00:15.3]}
51... Kc8 {[%clk 0:00:36.9]} 52. Re7 {[%clk 0:00:11.7]} 52... Ra2 {[%clk
0:00:32.3]} 53. Re6 {[%clk 0:00:09.6]} 53... Rxh2 {[%clk 0:00:24.7]} 54. Rxg6
{[%clk 0:00:10.7]} 54... Kd7 {[%clk 0:00:26.1]} 55. Kxf5 {[%clk 0:00:11.7]}
55... Ke7 {[%clk 0:00:26.9]} 56. Rg7+ {[%clk 0:00:11.7]} 56... Kf8 {[%clk
0:00:27.8]} 57. Ra7 {[%clk 0:00:11.9]} 57... Rb2 {[%clk 0:00:27.6]} 58. g4
{[%clk 0:00:11.6]} 58... Rb5+ {[%clk 0:00:27.6]} 59. Kg6 {[%clk 0:00:12.9]}
59... Rb6+ {[%clk 0:00:28.5]} 60. Kg5 {[%clk 0:00:14.4]} 60... Rb1 {[%clk
0:00:28.4]} 61. f5 {[%clk 0:00:15.4]} 61... Rb5 {[%clk 0:00:28.5]} 62. Kg6
{[%clk 0:00:15.4]} 62... Rb3 {[%clk 0:00:29]} 63. g5 {[%clk 0:00:15.8]} 63...
Rb8 {[%clk 0:00:26.8]} 64. f6 {[%clk 0:00:16.3]} 64... Kg8 {[%clk 0:00:27.4]}
65. Rh7 {[%clk 0:00:15.4]} 65... Rb6 {[%clk 0:00:24.7]} 66. Rg7+ {[%clk
0:00:15.3]} 66... Kf8 {[%clk 0:00:24.9]} 67. Ra7 {[%clk 0:00:13.4]} 67... Rb8
{[%clk 0:00:24.8]} 68. Rh7 {[%clk 0:00:06.4]} 68... Rb6 {[%clk 0:00:23.1]} 69.
Rh8# {[%clk 0:00:07.5]} 1-0

[Event "*** Titled Tuesday Blitz"]
[Site "Chess.com"]
[Date "2020.01.07"]
[Round "8"]
[White "VFernandezB"]
[Black "Karina_Ivanova"]
[Result "1-0"]
[WhiteElo "2247"]
[BlackElo "2156"]
[TimeControl "180+2"]
[EndTime "14:56:30 PST"]
[Termination "VFernandezB won by resignation"]

1. g3 {[%clk 0:03:01.9]} 1... Nf6 {[%clk 0:02:58.8]} 2. Bg2 {[%clk 0:03:02.8]}
2... e6 {[%clk 0:02:57.9]} 3. c4 {[%clk 0:03:03.4]} 3... d5 {[%clk 0:02:57.2]}
4. Nf3 {[%clk 0:03:03]} 4... Be7 {[%clk 0:02:50.3]} 5. O-O {[%clk 0:03:03]} 5...
O-O {[%clk 0:02:50.5]} 6. d4 {[%clk 0:03:02.7]} 6... dxc4 {[%clk 0:02:37]} 7.
Ne5 {[%clk 0:03:02.9]} 7... Nc6 {[%clk 0:02:36.9]} 8. Nxc6 {[%clk 0:03:02.3]}
8... bxc6 {[%clk 0:02:37.4]} 9. Bxc6 {[%clk 0:03:00.5]} 9... Rb8 {[%clk
0:02:37.8]} 10. Nc3 {[%clk 0:02:54.8]} 10... Bb7 {[%clk 0:02:36.6]} 11. Bxb7
{[%clk 0:02:54.9]} 11... Rxb7 {[%clk 0:02:37.1]} 12. e4 {[%clk 0:02:56.4]} 12...
c5 {[%clk 0:02:37.3]} 13. d5 {[%clk 0:02:56.8]} 13... exd5 {[%clk 0:02:34.6]}
14. exd5 {[%clk 0:02:57.2]} 14... Rd7 {[%clk 0:02:35.2]} 15. Qe2 {[%clk
0:02:55.9]} 15... Nxd5 {[%clk 0:02:34.9]} 16. Nxd5 {[%clk 0:02:56.7]} 16... Rxd5
{[%clk 0:02:35.7]} 17. Qxc4 {[%clk 0:02:57.9]} 17... Bf6 {[%clk 0:02:30.9]} 18.
Rb1 {[%clk 0:02:54.6]} 18... Rd1 {[%clk 0:02:13.4]} 19. Be3 {[%clk 0:02:53.6]}
19... Rxf1+ {[%clk 0:02:10.7]} 20. Kxf1 {[%clk 0:02:53.8]} 20... Qa8 {[%clk
0:02:05.7]} 21. Kg1 {[%clk 0:02:52.6]} 21... Rc8 {[%clk 0:02:00.4]} 22. b3
{[%clk 0:02:51.3]} 22... Be7 {[%clk 0:01:52.7]} 23. Rc1 {[%clk 0:02:51.6]} 23...
a5 {[%clk 0:01:44.6]} 24. Qb5 {[%clk 0:02:41.8]} 24... Qa7 {[%clk 0:01:40.5]}
25. Rc4 {[%clk 0:02:35.3]} 25... g6 {[%clk 0:01:35.1]} 26. a3 {[%clk 0:02:31.5]}
26... Rb8 {[%clk 0:01:33.9]} 27. Qc6 {[%clk 0:02:23.6]} 27... Rxb3 {[%clk
0:01:29.2]} 28. Bxc5 {[%clk 0:02:10.4]} 28... Bxc5 {[%clk 0:01:24.4]} 29. Rxc5
{[%clk 0:02:11.5]} 29... Qe7 {[%clk 0:01:04.1]} 30. Qd5 {[%clk 0:02:07.9]} 30...
Qe1+ {[%clk 0:00:22.6]} 31. Kg2 {[%clk 0:02:07]} 31... Rb1 {[%clk 0:00:20]} 32.
Rc8+ {[%clk 0:02:06.8]} 32... Kg7 {[%clk 0:00:20.5]} 33. Qd4+ {[%clk 0:02:07.9]}
33... Kh6 {[%clk 0:00:21.2]} 34. Qf4+ {[%clk 0:01:45.4]} 34... Kg7 {[%clk
0:00:21.1]} 35. Kh3 {[%clk 0:01:37.6]} 35... Qe6+ {[%clk 0:00:19.5]} 36. Qg4
{[%clk 0:01:38.7]} 36... Qxg4+ {[%clk 0:00:19.1]} 37. Kxg4 {[%clk 0:01:39.2]}
37... Ra1 {[%clk 0:00:20.2]} 38. Rc3 {[%clk 0:01:37.9]} 38... Ra2 {[%clk
0:00:17.9]} 39. Kf3 {[%clk 0:01:37.8]} 39... f5 {[%clk 0:00:17.7]} 40. h4 {[%clk
0:01:36.7]} 40... Kf6 {[%clk 0:00:16.5]} 41. Ke3 {[%clk 0:01:37.8]} 41... h6
{[%clk 0:00:16.2]} 42. f3 {[%clk 0:01:37.9]} 42... g5 {[%clk 0:00:16.7]} 43.
Rc6+ {[%clk 0:01:38.4]} 43... Kg7 {[%clk 0:00:17]} 44. h5 {[%clk 0:01:38.9]}
44... Rh2 {[%clk 0:00:15.1]} 45. Rc5 {[%clk 0:01:35.6]} 45... Rxh5 {[%clk
0:00:14.5]} 46. Rxf5 {[%clk 0:01:35.8]} 46... Rh3 {[%clk 0:00:13.6]} 47. g4
{[%clk 0:01:36.9]} 47... Rh2 {[%clk 0:00:11.6]} 48. Rxa5 {[%clk 0:01:37.4]}
48... Ra2 {[%clk 0:00:12.3]} 49. Ke4 {[%clk 0:01:38.4]} 49... Rf2 {[%clk
0:00:12.2]} 50. Ra6 {[%clk 0:01:36.8]} 50... Rd2 {[%clk 0:00:12]} 51. a4 {[%clk
0:01:37.8]} 51... Re2+ {[%clk 0:00:12.9]} 52. Kf5 {[%clk 0:01:37.9]} 52... Re3
{[%clk 0:00:13.9]} 53. Ra7+ {[%clk 0:01:39.3]} 53... Kf8 {[%clk 0:00:13.8]} 54.
Kg6 {[%clk 0:01:35.2]} 54... Re6+ {[%clk 0:00:14.3]} 55. Kh5 {[%clk 0:01:34.4]}
55... Rf6 {[%clk 0:00:15.1]} 56. a5 {[%clk 0:01:33.5]} 56... Kg8 {[%clk
0:00:15]} 57. a6 {[%clk 0:01:33.1]} 57... Kf8 {[%clk 0:00:15.1]} 58. Rh7 {[%clk
0:01:29.2]} 58... Rxa6 {[%clk 0:00:15.1]} 59. Rxh6 {[%clk 0:01:30.4]} 59... Ra3
{[%clk 0:00:16.3]} 60. Rf6+ {[%clk 0:01:30.2]} 60... Kg7 {[%clk 0:00:15.9]} 61.
Rf5 {[%clk 0:01:31.1]} 61... Ra8 {[%clk 0:00:08.7]} 62. Kxg5 {[%clk 0:01:32.1]}
62... Ra6 {[%clk 0:00:10.1]} 63. Re5 {[%clk 0:01:33.2]} 63... Rg6+ {[%clk
0:00:10.4]} 64. Kf4 {[%clk 0:01:34.5]} 64... Rf6+ {[%clk 0:00:11.7]} 65. Kg3
{[%clk 0:01:35.9]} 65... Kg6 {[%clk 0:00:12.6]} 66. f4 {[%clk 0:01:37.3]} 66...
Rb6 {[%clk 0:00:12.9]} 67. g5 {[%clk 0:01:38.5]} 67... Rc6 {[%clk 0:00:12.6]}
68. Kg4 {[%clk 0:01:39.3]} 68... Rc4 {[%clk 0:00:13.6]} 69. Re6+ {[%clk
0:01:40.4]} 69... Kf7 {[%clk 0:00:14.3]} 70. Rf6+ {[%clk 0:01:41.5]} 70... Kg7
{[%clk 0:00:14.8]} 71. Rb6 {[%clk 0:01:41.9]} 71... Ra4 {[%clk 0:00:14.8]} 72.
g6 {[%clk 0:01:42]} 72... Ra1 {[%clk 0:00:12.4]} 73. Kg5 {[%clk 0:01:39.6]}
73... Rg1+ {[%clk 0:00:12.5]} 74. Kf5 {[%clk 0:01:40.9]} 74... Ra1 {[%clk
0:00:11.3]} 75. Rb7+ {[%clk 0:01:41.9]} 75... Kg8 {[%clk 0:00:11.3]} 76. Kg5
{[%clk 0:01:43.1]} 76... Rg1+ {[%clk 0:00:11.4]} 77. Kf6 {[%clk 0:01:43.9]} 1-0